fUSD/lending_fUSD_20251001
["ID","MTS","AMOUNT","RATE_DAILY","PERIOD"]
[388686228,1759318269871,-500.0,0.00022191,2]
[388686229,1759318269884,-4119.63,0.00022191,2]
[388686230,1759318269896,-611.19,0.00022191,2]
[388686231,1759318269906,-4084.32,0.00022191,2]
[388686232,1759318269918,-1420.61,0.00022191,2]
[388686233,1759318269930,-9986.56,0.00022191,2]
[388686234,1759318269943,-824.77,0.00022191,2]
[388686235,1759318269955,-500.0,0.00022191,2]
[388686236,1759318269967,-3312.0,0.00022191,2]
[388686237,1759318269979,-4540.86,0.00022191,2]
[388686238,1759318269990,-500.0,0.00022191,2]
[388686239,1759318270002,-500.0,0.00022191,2]
[388686240,1759318270013,-500.0,0.00022191,2]
[388686241,1759318270024,-500.0,0.00022191,2]
[388686242,1759318270035,-2501.86,0.00022191,2]
[388686243,1759318270045,-28297.34,0.00022191,2]
[388686244,1759318270056,-2741.16,0.00022191,2]
[388686245,1759318270067,-1063.96,0.00022191,2]
[388686246,1759318270078,-500.0,0.00022191,2]
[388686247,1759318270088,-2858.54,0.00022191,2]
[388686248,1759318270099,-7951.4,0.00022191,2]
[388686249,1759318270109,-1072.17,0.00022191,2]
[388686250,1759318270119,-616.32,0.00022191,2]
[388686251,1759318270130,-1632.22,0.00022191,2]
[388686252,1759318270139,-2269.31,0.00022191,2]
[388686253,1759318270149,-3424.52,0.00022191,2]
[388686254,1759318270159,-2719.21,0.00022191,2]
[388686255,1759318270169,-500.0,0.00022191,2]
[388686256,1759318270179,-786.83,0.00022191,2]
[388686257,1759318270191,-2416.99,0.00022191,2]
[388686258,1759318270200,-1055.57,0.00022191,2]
[388686259,1759318270210,-3904.64,0.00022191,2]
[388686260,1759318270220,-500.0,0.00022191,2]
[388686261,1759318270229,-500.0,0.00022191,2]
[388686262,1759318270238,-1288.8,0.00022191,2]
[388686263,1759318270248,-500.0,0.00022191,2]
[388686264,1759318270258,-2106.81,0.00022191,2]
[388686265,1759318270269,-500.0,0.00022191,2]
[388686266,1759318270283,-500.0,0.00022191,2]
[388686267,1759318270293,-500.0,0.00022191,2]
[388686268,1759318270303,-1100.67,0.00022191,2]
[388686269,1759318270312,-500.0,0.00022191,2]
[388686270,1759318270321,-500.0,0.00022191,2]
[388686271,1759318270331,-500.0,0.00022191,2]
[388686272,1759318270340,-674.98,0.00022191,2]
[388686273,1759318270349,-5571.66,0.00022191,2]
[388686274,1759318270358,-2939.62,0.00022191,2]
[388686275,1759318270367,-500.0,0.00022191,2]
[388686276,1759318270376,-1333.53,0.00022191,2]
[388686277,1759318270386,-1990.12,0.00022191,2]
[388686278,1759318270395,-4094.92,0.00022191,2]
[388686279,1759318270404,-7855.89,0.00022191,2]
[388686280,1759318270413,-1670.7,0.00022191,2]
[388686281,1759318270423,-4769.81,0.00022191,2]
[388686282,1759318270434,-500.0,0.00022191,2]
[388686283,1759318270443,-500.0,0.00022191,2]
[388686284,1759318270452,-1605.49,0.00022191,2]
[388686285,1759318270461,-500.0,0.00022191,2]
[388686286,1759318270471,-2296.75,0.00022191,2]
[388686287,1759318270481,-3736.18,0.00022191,2]
[388686288,1759318270490,-566.81,0.00022191,2]
[388686289,1759318270499,-557.68132511,0.00022208,2]
[388686290,1759318270510,-833.92870212,0.00022219,2]
[388686291,1759318270519,-500.0,0.00022222,2]
[388686292,1759318270529,-251.35592749,0.00022236,10]
[388686293,1759318270539,-874.78,0.00022294,2]
[388686294,1759318270548,-807.01,0.00022294,2]
[388686295,1759318270558,-807.01,0.00022294,2]
[388686296,1759318270567,-807.01,0.00022294,2]
[388686297,1759318270576,-807.01,0.00022294,2]
[388686298,1759318270586,-157.64,0.00022294,2]
[388686299,1759318270596,-833.92870212,0.00022301,2]
[388686300,1759318270605,-415.9817729,0.00022306,2]
[388686301,1759318270614,-365.733044,0.00022306,2]
[388686302,1759318270623,-326.39,0.00022315,2]
[388686303,1759318270633,-1329.37,0.00022315,2]
[388686304,1759318270641,-200.0,0.00022322,2]
[388686305,1759318270650,-355.0,0.0002233,2]
[388686306,1759318270659,-168.0,0.00022347,2]
[388686307,1759318270669,-177.14925818,0.00022365,2]
[388686308,1759318270677,-270.0,0.0002238,2]
[388686309,1759318270688,-833.92870212,0.00022384,2]
[388686310,1759318270697,-557.68132511,0.00022404,2]
[388686311,1759318270707,-168.0,0.00022412,2]
[388686312,1759318270716,-199.11744359,0.00022438,4]
[388686313,1759318270726,-150.0,0.00022438,4]
[388686314,1759318270735,-274.93284269,0.00022438,4]
[388686315,1759318270745,-150.0,0.00022438,4]
[388686316,1759318270754,-260.3945121,0.00022438,4]
[388686317,1759318270765,-152.43988675,0.00022438,4]
[388686318,1759318270779,-246.75939449,0.00022438,4]
[388686319,1759318270788,-150.0,0.00022438,4]
[388686320,1759318270797,-150.0,0.00022438,4]
[388686321,1759318270807,-172.04301443,0.00022438,4]
[388686322,1759318270817,-150.0,0.00022442,2]
[388686323,1759318270826,-236.27428611,0.00022444,2]
[388686324,1759318270835,-309.78184179,0.00022446,2]
[388686325,1759318270845,-383.28939747,0.00022448,2]
[388686326,1759318270855,-456.79695315,0.0002245,2]
[388686327,1759318270864,-530.30450883,0.00022451,2]
[388686328,1759318270873,-150.0,0.00022452,2]
[388686329,1759318270882,-150.0,0.00022452,2]
[388686330,1759318270891,-200.0,0.00022452,2]
[388686331,1759318270900,-500.0,0.00022452,2]
[388686332,1759318270910,-453.0,0.00022452,2]
[388686333,1759318270920,-500.0,0.00022452,2]
[388686334,1759318270929,-500.0,0.00022452,2]
[388686335,1759318270939,-250.0,0.00022452,2]
[388686336,1759318270950,-603.81206451,0.00022453,2]
[388686337,1759318270960,-677.31962018,0.00022455,2]
[388686338,1759318270970,-500.0,0.00022465,2]
[388686339,1759318270979,-4448.0,0.00022465,2]
[388686340,1759318270989,-500.0,0.00022465,2]
[388686341,1759318270999,-500.0,0.00022465,2]
[388686342,1759318271008,-1429.29,0.00022465,2]
[388686343,1759318271017,-500.0,0.00022465,2]
[388686344,1759318271026,-931.7,0.00022465,2]
[388686345,1759318271037,-500.0,0.00022465,2]
[388686346,1759318271046,-500.0,0.00022465,2]
[388686347,1759318271056,-613.61310285,0.00022465,2]
[388686348,1759318271065,-564.99,0.00022465,2]
[388686349,1759318271074,-1237.47,0.00022465,2]
[388686350,1759318271084,-500.0,0.00022465,2]
[388686351,1759318271093,-1368.58,0.00022465,2]
[388686352,1759318271102,-500.0,0.00022465,2]
[388686353,1759318271111,-500.0,0.00022465,2]
[388686354,1759318271121,-1020.59,0.00022465,2]
[388686355,1759318271131,-500.0,0.00022465,2]
[388686356,1759318271143,-500.0,0.00022465,2]
[388686357,1759318271152,-500.0,0.00022465,2]
[388686358,1759318271163,-500.0,0.00022465,2]
[388686359,1759318271172,-542.25,0.00022465,2]
[388686360,1759318271182,-2330.26,0.00022465,2]
[388686361,1759318271191,-908.17,0.00022465,2]
[388686362,1759318271201,-883.05,0.00022465,2]
[388686363,1759318271210,-2291.28,0.00022465,2]
[388686364,1759318271221,-420.32028063,0.00022465,2]
[388686365,1759318271230,-500.0,0.00022465,2]
[388686366,1759318271239,-500.0,0.00022465,2]
[388686367,1759318271248,-500.0,0.00022465,2]
[388686368,1759318271257,-500.0,0.00022465,2]
[388686369,1759318271267,-500.0,0.00022465,2]
[388686370,1759318271277,-375.27744893,0.00022465,2]
[388686371,1759318271287,-500.0,0.00022465,2]
[388686372,1759318271296,-500.0,0.00022465,2]
[388686373,1759318271305,-608.79,0.00022465,2]
[388686374,1759318271316,-899.39,0.00022465,2]
[388686375,1759318271326,-500.0,0.00022465,2]
[388686376,1759318271337,-500.0,0.00022465,2]
[388686377,1759318271346,-1122.01,0.00022465,2]
[388686378,1759318271356,-692.34,0.00022465,2]
[388686379,1759318271366,-672.48,0.00022465,2]
[388686380,1759318271375,-500.0,0.00022465,2]
[388686381,1759318271384,-677.66,0.00022465,2]
[388686382,1759318271394,-500.0,0.00022465,2]
[388686383,1759318271404,-579.13,0.00022465,2]
[388686384,1759318271413,-500.0,0.00022465,2]
[388686385,1759318271422,-500.0,0.00022465,2]
[388686386,1759318271431,-500.0,0.00022465,2]
[388686387,1759318271441,-500.0,0.00022465,2]
[388686388,1759318271450,-500.0,0.00022465,2]
[388686389,1759318271459,-500.0,0.00022465,2]
[388686390,1759318271468,-814.42,0.00022465,2]
[388686391,1759318271477,-500.0,0.00022465,2]
[388686392,1759318271486,-614.26286803,0.00022465,2]
[388686393,1759318271496,-500.0,0.00022465,2]
[388686394,1759318271507,-1734.4,0.00022465,2]
[388686395,1759318271517,-1734.4,0.00022465,2]
[388686396,1759318271527,-500.0,0.00022465,2]
[388686397,1759318271536,-500.0,0.00022465,2]
[388686398,1759318271546,-570.57,0.00022465,2]
[388686399,1759318271555,-520.39,0.00022465,2]
[388686400,1759318271565,-231.95474027,0.00022465,2]
[388686401,1759318271574,-500.0,0.00022465,2]
[388686402,1759318271584,-500.0,0.00022465,2]
[388686403,1759318271593,-508.69309464,0.00022465,2]
[388686404,1759318271602,-500.0,0.00022465,2]
[388686405,1759318271611,-500.0,0.00022465,2]
[388686406,1759318271620,-500.0,0.00022465,2]
[388686407,1759318271629,-195.22362607,0.00022465,2]
[388686408,1759318271638,-500.0,0.00022465,2]
[388686409,1759318271647,-2112.03,0.00022465,2]
[388686410,1759318271657,-500.0,0.00022465,2]
[388686411,1759318271667,-500.0,0.00022465,2]
[388686412,1759318271678,-500.0,0.00022465,2]
[388686413,1759318271689,-500.0,0.00022465,2]
[388686414,1759318271698,-500.0,0.00022465,2]
[388686415,1759318271708,-300.93173085,0.00022465,2]
[388686416,1759318271718,-662.1,0.00022465,2]
[388686417,1759318271727,-577.90071047,0.00022465,2]
[388686418,1759318271736,-500.0,0.00022465,2]
[388686419,1759318271746,-500.0,0.00022465,2]
[388686420,1759318271757,-259.87062759,0.00022465,2]
[388686421,1759318271772,-1441.18,0.00022465,2]
[388686422,1759318271782,-500.0,0.00022465,2]
[388686423,1759318271792,-500.0,0.00022465,2]
[388686424,1759318271803,-224.64518673,0.00022465,2]
[388686425,1759318271812,-500.0,0.00022465,2]
[388686426,1759318271821,-500.0,0.00022465,2]
[388686427,1759318271830,-500.0,0.00022465,2]
[388686428,1759318271842,-500.0,0.00022465,2]
[388686429,1759318271852,-2243.63,0.00022465,2]
[388686430,1759318271861,-500.0,0.00022465,2]
[388686431,1759318271871,-500.0,0.00022465,2]
[388686432,1759318271880,-500.0,0.00022465,2]
[388686433,1759318271890,-382.73121525,0.00022465,2]
[388686434,1759318271899,-712.46,0.00022465,2]
[388686435,1759318271909,-559.00045794,0.00022465,2]
[388686436,1759318271918,-172.088584,0.00022465,2]
[388686437,1759318271928,-500.0,0.00022465,2]
[388686438,1759318271938,-500.0,0.00022465,2]
[388686439,1759318271948,-5388.95684,0.00022465,2]
[388686440,1759318271958,-500.0,0.00022465,2]
[388686441,1759318271968,-500.0,0.00022465,2]
[388686442,1759318271978,-3006.026575,0.00022465,2]
[388686443,1759318271988,-500.0,0.00022465,2]
[388686444,1759318271998,-500.0,0.00022465,2]
[388686445,1759318272008,-500.7355915,0.00022465,2]
[388686446,1759318272017,-500.0,0.00022465,2]
[388686447,1759318272027,-500.0,0.00022465,2]
[388686448,1759318272036,-500.0,0.00022465,2]
[388686449,1759318272045,-5523.049846,0.00022465,2]
[388686450,1759318272054,-706.01,0.00022465,2]
[388686451,1759318272064,-500.0,0.00022465,2]
[388686452,1759318272073,-500.0,0.00022465,2]
[388686453,1759318272083,-500.0,0.00022465,2]
[388686454,1759318272092,-500.0,0.00022465,2]
[388686455,1759318272102,-706.11,0.00022465,2]
[388686456,1759318272111,-525.64,0.00022465,2]
[388686457,1759318272122,-912.73,0.00022465,2]
[388686458,1759318272131,-500.0,0.00022465,2]
[388686459,1759318272141,-500.0,0.00022465,2]
[388686460,1759318272152,-500.0,0.00022465,2]
[388686461,1759318272162,-508.57,0.00022465,2]
[388686462,1759318272171,-500.0,0.00022465,2]
[388686463,1759318272180,-500.0,0.00022465,2]
[388686464,1759318272191,-500.0,0.00022465,2]
[388686465,1759318272200,-782.37,0.00022465,2]
[388686466,1759318272210,-500.0,0.00022465,2]
[388686467,1759318272219,-500.0,0.00022465,2]
[388686468,1759318272228,-1002.1,0.00022465,2]
[388686469,1759318272238,-1284.18,0.00022465,2]
[388686470,1759318272248,-713.3,0.00022465,2]
[388686471,1759318272256,-733.41,0.00022465,2]
[388686472,1759318272266,-500.0,0.00022465,2]
[388686473,1759318272275,-1384.31,0.00022465,2]
[388686474,1759318272285,-772.53,0.00022465,2]
[388686475,1759318272294,-515.46,0.00022465,2]
[388686476,1759318272303,-500.0,0.00022465,2]
[388686477,1759318272313,-564.54,0.00022465,2]
[388686478,1759318272322,-1013.21,0.00022465,2]
[388686479,1759318272332,-500.0,0.00022465,2]
[388686480,1759318272341,-500.0,0.00022465,2]
[388686481,1759318272351,-624.09,0.00022465,2]
[388686482,1759318272363,-500.0,0.00022465,2]
[388686483,1759318272372,-518.34,0.00022465,2]
[388686484,1759318272382,-755.04,0.00022465,2]
[388686485,1759318272391,-500.0,0.00022465,2]
[388686486,1759318272401,-500.0,0.00022465,2]
[388686487,1759318272411,-500.0,0.00022465,2]
[388686488,1759318272420,-709.78,0.00022465,2]
[388686489,1759318272430,-500.0,0.00022465,2]
[388686490,1759318272440,-1189.67,0.00022465,2]
[388686491,1759318272449,-500.0,0.00022465,2]
[388686492,1759318272458,-500.0,0.00022465,2]
[388686493,1759318272468,-994.01,0.00022465,2]
[388686494,1759318272477,-500.0,0.00022465,2]
[388686495,1759318272486,-500.0,0.00022465,2]
[388686496,1759318272495,-538.23,0.00022465,2]
[388686497,1759318272505,-500.0,0.00022465,2]
[388686498,1759318272514,-603.34,0.00022465,2]
[388686499,1759318272523,-500.0,0.00022465,2]
[388686500,1759318272532,-1708.78,0.00022465,2]
[388686501,1759318272542,-735.92,0.00022465,2]
[388686502,1759318272551,-500.0,0.00022465,2]
[388686503,1759318272560,-500.0,0.00022465,2]
[388686504,1759318272570,-500.0,0.00022465,2]
[388686505,1759318272579,-696.73,0.00022465,2]
[388686506,1759318272588,-615.66,0.00022465,2]
[388686507,1759318272598,-500.0,0.00022465,2]
[388686508,1759318272607,-682.76,0.00022465,2]
[388686509,1759318272616,-727.15,0.00022465,2]
[388686510,1759318272625,-598.24,0.00022465,2]
[388686511,1759318272635,-500.0,0.00022465,2]
[388686512,1759318272644,-500.0,0.00022465,2]
[388686513,1759318272653,-1327.41,0.00022465,2]
[388686514,1759318272662,-630.07,0.00022465,2]
[388686515,1759318272672,-797.8,0.00022465,2]
[388686516,1759318272681,-605.04184703,0.00022465,2]
[388686517,1759318272691,-500.0,0.00022465,2]
[388686518,1759318272700,-627.2,0.00022465,2]
[388686519,1759318272709,-940.59,0.00022465,2]
[388686520,1759318272718,-500.0,0.00022465,2]
[388686521,1759318272728,-500.0,0.00022465,2]
[388686522,1759318272737,-500.0,0.00022465,2]
[388686523,1759318272746,-938.74,0.00022465,2]
[388686524,1759318272756,-500.0,0.00022465,2]
[388686525,1759318272767,-1459.36,0.00022465,2]
[388686526,1759318272781,-633.98,0.00022465,2]
[388686527,1759318272791,-500.0,0.00022465,2]
[388686528,1759318272800,-500.0,0.00022465,2]
[388686529,1759318272811,-2119.06,0.00022465,2]
[388686530,1759318272820,-500.0,0.00022465,2]
[388686531,1759318272829,-2643.28,0.00022465,2]
[388686532,1759318272838,-500.0,0.00022465,2]
[388686533,1759318272848,-500.0,0.00022465,2]
[388686534,1759318272859,-2841.12,0.00022465,2]
[388686535,1759318272869,-500.0,0.00022465,2]
[388686536,1759318272878,-500.0,0.00022465,2]
[388686537,1759318272887,-500.0,0.00022465,2]
[388686538,1759318272897,-500.0,0.00022465,2]
[388686539,1759318273031,-500.0,0.00022465,2]
[388686540,1759318273048,-500.0,0.00022465,2]
[388686541,1759318273058,-500.0,0.00022465,2]
[388686542,1759318273067,-500.0,0.00022465,2]
[388686543,1759318273077,-500.0,0.00022465,2]
[388686544,1759318273086,-165.28432142,0.00022465,2]
[388686545,1759318273095,-500.0,0.00022465,2]
[388686546,1759318273105,-500.0,0.00022465,2]
[388686547,1759318273114,-500.0,0.00022465,2]
[388686548,1759318273124,-500.0,0.00022465,2]
[388686549,1759318273134,-663.86,0.00022465,2]
[388686550,1759318273144,-500.0,0.00022465,2]
[388686551,1759318273153,-752.15,0.00022465,2]
[388686552,1759318273163,-659.45,0.00022465,2]
[388686553,1759318273172,-500.0,0.00022465,2]
[388686554,1759318273181,-655.93,0.00022465,2]
[388686555,1759318273192,-500.0,0.00022465,2]
[388686556,1759318273202,-257.36395567,0.00022465,2]
[388686557,1759318273212,-743.44,0.00022465,2]
[388686558,1759318273221,-500.0,0.00022465,2]
[388686559,1759318273231,-1013.95,0.00022465,2]
[388686560,1759318273241,-500.0,0.00022465,2]
[388686561,1759318273250,-500.0,0.00022465,2]
[388686562,1759318273260,-500.0,0.00022465,2]
[388686563,1759318273269,-500.0,0.00022465,2]
[388686564,1759318273279,-500.0,0.00022465,2]
[388686565,1759318273288,-500.0,0.00022465,2]
[388686566,1759318273297,-500.0,0.00022465,2]
[388686567,1759318273306,-500.0,0.00022465,2]
[388686568,1759318273316,-557.55,0.00022465,2]
[388686569,1759318273326,-500.0,0.00022465,2]
[388686570,1759318273335,-523.59,0.00022465,2]
[388686571,1759318273345,-714.54,0.00022465,2]
[388686572,1759318273354,-500.0,0.00022465,2]
[388686573,1759318273364,-259.97405626,0.00022465,2]
[388686574,1759318273374,-500.0,0.00022465,2]
[388686575,1759318273384,-1146.08,0.00022465,2]
[388686576,1759318273394,-1837.04,0.00022465,2]
[388686577,1759318273404,-761.57,0.00022465,2]
[388686578,1759318273413,-500.0,0.00022465,2]
[388686579,1759318273423,-500.0,0.00022465,2]
[388686580,1759318273434,-500.0,0.00022465,2]
[388686581,1759318273444,-500.0,0.00022465,2]
[388686582,1759318273453,-500.0,0.00022465,2]
[388686583,1759318273465,-500.0,0.00022465,2]
[388686584,1759318273475,-859.29,0.00022465,2]
[388686585,1759318273484,-500.0,0.00022465,2]
[388686586,1759318273495,-500.0,0.00022465,2]
[388686587,1759318273505,-500.0,0.00022465,2]
[388686588,1759318273515,-500.0,0.00022465,2]
[388686589,1759318273524,-500.0,0.00022465,2]
[388686590,1759318273534,-1150.73,0.00022465,2]
[388686591,1759318273544,-707.32,0.00022465,2]
[388686592,1759318273554,-500.0,0.00022465,2]
[388686593,1759318273564,-624.85,0.00022465,2]
[388686594,1759318273573,-1033.59,0.00022465,2]
[388686595,1759318273583,-500.0,0.00022465,2]
[388686596,1759318273592,-1633.54,0.00022465,2]
[388686597,1759318273603,-1419.35,0.00022465,2]
[388686598,1759318273612,-1702.35,0.00022465,2]
[388686599,1759318273621,-500.0,0.00022465,2]
[388686600,1759318273631,-1065.94,0.00022465,2]
[388686601,1759318273641,-500.0,0.00022465,2]
[388686602,1759318273650,-500.0,0.00022465,2]
[388686603,1759318273661,-474.13144313,0.00022465,2]
[388686604,1759318273671,-513.07,0.00022465,2]
[388686605,1759318273680,-501.2854637,0.00022465,2]
[388686606,1759318273690,-2249.68,0.00022465,2]
[388686607,1759318273700,-500.0,0.00022465,2]
[388686608,1759318273710,-500.0,0.00022465,2]
[388686609,1759318273720,-601.17,0.00022465,2]
[388686610,1759318273730,-907.41,0.00022465,2]
[388686611,1759318273740,-1464.01,0.00022465,2]
[388686612,1759318273750,-3074.58,0.00022465,2]
[388686613,1759318273760,-563.38,0.00022465,2]
[388686614,1759318273774,-1681.18,0.00022465,2]
[388686615,1759318273783,-500.0,0.00022465,2]
[388686616,1759318273794,-500.0,0.00022465,2]
[388686617,1759318273803,-666.02,0.00022465,2]
[388686618,1759318273814,-500.0,0.00022465,2]
[388686619,1759318273824,-531.15,0.00022465,2]
[388686620,1759318273834,-3287.32,0.00022465,2]
[388686621,1759318273845,-595.93,0.00022465,2]
[388686622,1759318273855,-1090.46,0.00022465,2]
[388686623,1759318273864,-500.0,0.00022465,2]
[388686624,1759318273873,-500.0,0.00022465,2]
[388686625,1759318273882,-845.06,0.00022465,2]
[388686626,1759318273892,-500.0,0.00022465,2]
[388686627,1759318273901,-663.16,0.00022465,2]
[388686628,1759318273911,-2422.42,0.00022465,2]
[388686629,1759318273922,-647.83,0.00022465,2]
[388686630,1759318273933,-500.0,0.00022465,2]
[388686631,1759318273943,-446.13136934,0.00022465,2]
[388686632,1759318273953,-500.0,0.00022465,2]
[388686633,1759318273963,-500.0,0.00022465,2]
[388686634,1759318273972,-2663.24,0.00022465,2]
[388686635,1759318273982,-500.0,0.00022465,2]
[388686636,1759318273992,-1364.4,0.00022465,2]
[388686637,1759318274002,-2107.35,0.00022465,2]
[388686638,1759318274011,-1219.87,0.00022465,2]
[388686639,1759318274021,-579.16,0.00022465,2]
[388686640,1759318274030,-500.0,0.00022465,2]
[388686641,1759318274040,-500.0,0.00022465,2]
[388686642,1759318274049,-618.49,0.00022465,2]
[388686643,1759318274059,-584.09,0.00022465,2]
[388686644,1759318274068,-2393.65,0.00022465,2]
[388686645,1759318274078,-500.0,0.00022465,2]
[388686646,1759318274088,-1446.28,0.00022465,2]
[388686647,1759318274100,-1903.98,0.00022465,2]
[388686648,1759318274109,-1805.51,0.00022465,2]
[388686649,1759318274118,-1644.47,0.00022465,2]
[388686650,1759318274128,-300.0,0.00022465,2]
[388686651,1759318274138,-541.65,0.00022465,2]
[388686652,1759318274148,-500.0,0.00022465,2]
[388686653,1759318274157,-500.0,0.00022465,2]
[388686654,1759318274166,-3732.83,0.00022465,2]
[388686655,1759318274175,-500.0,0.00022465,2]
[388686656,1759318274185,-2357.35,0.00022465,2]
[388686657,1759318274195,-2147.62,0.00022465,2]
[388686658,1759318274204,-4135.34,0.00022465,2]
[388686659,1759318274214,-500.0,0.00022465,2]
[388686660,1759318274223,-500.0,0.00022465,2]
[388686661,1759318274232,-263.29857914,0.00022465,2]
[388686662,1759318274241,-3101.97,0.00022465,2]
[388686663,1759318274251,-941.02,0.00022465,2]
[388686664,1759318274261,-500.0,0.00022465,2]
[388686665,1759318274271,-3254.59,0.00022465,2]
[388686666,1759318274280,-2391.09,0.00022465,2]
[388686667,1759318274289,-1514.2,0.00022465,2]
[388686668,1759318274299,-500.0,0.00022465,2]
[388686669,1759318274308,-770.79,0.00022465,2]
[388686670,1759318274318,-962.28,0.00022465,2]
[388686671,1759318274327,-681.62,0.00022465,2]
[388686672,1759318274336,-500.0,0.00022465,2]
[388686673,1759318274346,-1159.88,0.00022465,2]
[388686674,1759318274355,-500.0,0.00022465,2]
[388686675,1759318274364,-500.0,0.00022465,2]
[388686676,1759318274374,-2067.68,0.00022465,2]
[388686677,1759318274383,-1378.05,0.00022465,2]
[388686678,1759318274393,-175.01886529,0.00022465,2]
[388686679,1759318274402,-656.68,0.00022465,2]
[388686680,1759318274411,-2963.7,0.00022465,2]
[388686681,1759318274421,-500.0,0.00022465,2]
[388686682,1759318274430,-710.7,0.00022465,2]
[388686683,1759318274440,-500.0,0.00022465,2]
[388686684,1759318274449,-3612.14,0.00022465,2]
[388686685,1759318274459,-500.0,0.00022465,2]
[388686686,1759318274468,-3248.18,0.00022465,2]
[388686687,1759318274478,-608.62,0.00022465,2]
[388686688,1759318274487,-728.03,0.00022465,2]
[388686689,1759318274496,-500.0,0.00022465,2]
[388686690,1759318274506,-1191.17,0.00022465,2]
[388686691,1759318274515,-500.0,0.00022465,2]
[388686692,1759318274524,-800.96,0.00022465,2]
[388686693,1759318274534,-500.0,0.00022465,2]
[388686694,1759318274543,-3532.24,0.00022465,2]
[388686695,1759318274552,-2500.69,0.00022465,2]
[388686696,1759318274561,-1636.7,0.00022465,2]
[388686697,1759318274571,-2443.41,0.00022465,2]
[388686698,1759318274580,-500.0,0.00022465,2]
[388686699,1759318274589,-723.35,0.00022465,2]
[388686700,1759318274599,-500.0,0.00022465,2]
[388686701,1759318274608,-500.0,0.00022465,2]
[388686702,1759318274618,-500.0,0.00022465,2]
[388686703,1759318274636,-500.0,0.00022465,2]
[388686704,1759318274650,-2124.88,0.00022465,2]
[388686705,1759318274659,-1916.33,0.00022465,2]
[388686706,1759318274671,-538.36,0.00022465,2]
[388686707,1759318274680,-993.96,0.00022465,2]
[388686708,1759318274690,-3236.9,0.00022465,2]
[388686709,1759318274700,-500.0,0.00022465,2]
[388686710,1759318274709,-500.0,0.00022465,2]
[388686711,1759318274719,-1593.36,0.00022465,2]
[388686712,1759318274729,-3142.12,0.00022465,2]
[388686713,1759318274738,-500.0,0.00022465,2]
[388686714,1759318274748,-500.0,0.00022465,2]
[388686715,1759318274757,-201.11,0.00022465,2]
[388686716,1759318274768,-500.0,0.00022465,2]
[388686717,1759318274781,-500.0,0.00022465,2]
[388686718,1759318274791,-2050.53,0.00022465,2]
[388686719,1759318274800,-252.42292818,0.00022465,2]
[388686720,1759318274813,-233.49969425,0.00022465,2]
[388686721,1759318274824,-1132.84,0.00022465,2]
[388686722,1759318274834,-500.0,0.00022465,2]
[388686723,1759318274843,-394.67336072,0.00022465,2]
[388686724,1759318274855,-500.0,0.00022465,2]
[388686725,1759318274864,-643.49,0.00022465,2]
[388686726,1759318274874,-500.0,0.00022465,2]
[388686727,1759318274883,-500.0,0.00022465,2]